[Event "Late-Titled-Tuesday-Blitz-February-06-2024"]
[Site "Chess.com"]
[Date "2024.02.06"]
[Round "5"]
[White "Oleksandr_Bortnyk"]
[Black "Mops_2004"]
[Result "1/2-1/2"]
[WhiteElo "3073"]
[BlackElo "2733"]
[TimeControl "180+1"]
[EndTime "14:56:59 PST"]
[Termination "Game drawn by repetition"]

1. e4 {[%clk 0:02:59.6]} 1... g6 {[%clk 0:03:00.3]} 2. d4 {[%clk 0:02:55.7]}
2... Bg7 {[%clk 0:03:00.7]} 3. Nc3 {[%clk 0:02:54.5]} 3... d6 {[%clk 0:03:01.2]}
4. Be3 {[%clk 0:02:52.5]} 4... a6 {[%clk 0:03:01.4]} 5. f4 {[%clk 0:02:52.3]}
5... b5 {[%clk 0:03:00.4]} 6. Bd3 {[%clk 0:02:53.1]} 6... Nd7 {[%clk 0:02:59.8]}
7. e5 {[%clk 0:02:49]} 7... Bb7 {[%clk 0:02:45.9]} 8. Be4 {[%clk 0:02:48.7]}
8... Bxe4 {[%clk 0:02:27.8]} 9. Nxe4 {[%clk 0:02:49.6]} 9... Nh6 {[%clk
0:02:27.4]} 10. Nf3 {[%clk 0:02:47.7]} 10... O-O {[%clk 0:02:22.6]} 11. O-O
{[%clk 0:02:46.2]} 11... Nb6 {[%clk 0:01:53.8]} 12. Qe2 {[%clk 0:02:40.2]} 12...
Qd7 {[%clk 0:01:52.9]} 13. Rad1 {[%clk 0:02:39.7]} 13... Qc6 {[%clk 0:01:49.8]}
14. Ng3 {[%clk 0:02:33.2]} 14... e6 {[%clk 0:01:45.9]} 15. c3 {[%clk 0:02:31.2]}
15... Nf5 {[%clk 0:01:40.1]} 16. Nxf5 {[%clk 0:02:31]} 16... exf5 {[%clk
0:01:40.5]} 17. h4 {[%clk 0:02:18.9]} 17... h5 {[%clk 0:01:39.7]} 18. Ng5 {[%clk
0:02:12.2]} 18... Rae8 {[%clk 0:01:38.5]} 19. d5 {[%clk 0:01:49.8]} 19... Nxd5
{[%clk 0:01:34]} 20. Qf3 {[%clk 0:01:49.8]} 20... Ne7 {[%clk 0:01:34.1]} 21.
exd6 {[%clk 0:01:50.3]} 21... cxd6 {[%clk 0:01:33.3]} 22. Qxc6 {[%clk 0:01:50]}
22... Nxc6 {[%clk 0:01:33.4]} 23. Rxd6 {[%clk 0:01:41.8]} 23... Rxe3 {[%clk
0:01:32.8]} 24. Rxc6 {[%clk 0:01:42.2]} 24... a5 {[%clk 0:01:16.3]} 25. Rf3
{[%clk 0:01:30.4]} 25... Re1+ {[%clk 0:01:13.6]} 26. Kf2 {[%clk 0:01:29.3]}
26... Rb1 {[%clk 0:01:12.2]} 27. b3 {[%clk 0:01:25.8]} 27... Rb2+ {[%clk
0:01:11.1]} 28. Kg3 {[%clk 0:01:25.7]} 28... Rxa2 {[%clk 0:01:11.4]} 29. Rb6
{[%clk 0:01:15.4]} 29... Rc2 {[%clk 0:00:53.4]} 30. Rxb5 {[%clk 0:01:15.5]}
30... Bxc3 {[%clk 0:00:53.4]} 31. Rd3 {[%clk 0:01:07.9]} 31... Be1+ {[%clk
0:00:46.4]} 32. Kh3 {[%clk 0:01:06.5]} 32... Rfc8 {[%clk 0:00:43.4]} 33. Nf3
{[%clk 0:00:59.8]} 33... Bb4 {[%clk 0:00:40]} 34. Rb7 {[%clk 0:00:56.3]} 34...
R2c7 {[%clk 0:00:36.6]} 35. Rxc7 {[%clk 0:00:35]} 35... Rxc7 {[%clk 0:00:36.1]}
36. Kg3 {[%clk 0:00:35.5]} 36... Rc3 {[%clk 0:00:33.4]} 37. Rxc3 {[%clk
0:00:23.5]} 37... Bxc3 {[%clk 0:00:34.3]} 38. Kf2 {[%clk 0:00:24.3]} 38... Kf8
{[%clk 0:00:28.9]} 39. Ke3 {[%clk 0:00:24.8]} 39... Ke7 {[%clk 0:00:29.1]} 40.
Kd3 {[%clk 0:00:25.4]} 40... Bb4 {[%clk 0:00:24.3]} 41. Kc4 {[%clk 0:00:25.4]}
41... Bd6 {[%clk 0:00:20.2]} 42. g3 {[%clk 0:00:24.1]} 42... Bb4 {[%clk
0:00:20.7]} 43. Kd5 {[%clk 0:00:22.6]} 43... f6 {[%clk 0:00:17.7]} 44. Kc6
{[%clk 0:00:22.4]} 44... Ke6 {[%clk 0:00:17.8]} 45. Nd4+ {[%clk 0:00:19.6]}
45... Ke7 {[%clk 0:00:18]} 46. Nc2 {[%clk 0:00:19.7]} 46... Bd2 {[%clk
0:00:17.6]} 47. Nd4 {[%clk 0:00:18.3]} 47... Be1 {[%clk 0:00:16.2]} 48. Ne2
{[%clk 0:00:19.2]} 48... Ke6 {[%clk 0:00:16.3]} 49. Nd4+ {[%clk 0:00:19.4]}
49... Ke7 {[%clk 0:00:16.5]} 50. Ne2 {[%clk 0:00:20.3]} 50... Bd2 {[%clk
0:00:16.8]} 51. Kd5 {[%clk 0:00:18.8]} 51... Kd7 {[%clk 0:00:17]} 52. Nd4 {[%clk
0:00:17.7]} 52... Bc3 {[%clk 0:00:15.4]} 53. Nc2 {[%clk 0:00:11.9]} 53... Ke7
{[%clk 0:00:13]} 54. Kc4 {[%clk 0:00:08.6]} 54... Bb2 {[%clk 0:00:12.8]} 55. Kb5
{[%clk 0:00:06]} 55... Bc3 {[%clk 0:00:13.2]} 56. Kc4 {[%clk 0:00:06.4]} 56...
Bd2 {[%clk 0:00:13.7]} 57. Kd3 {[%clk 0:00:06.6]} 57... Bc1 {[%clk 0:00:12.6]}
58. Kc3 {[%clk 0:00:02.8]} 58... Kd6 {[%clk 0:00:11.3]} 59. Kd4 {[%clk 0:00:03]}
59... Kc6 {[%clk 0:00:10.7]} 60. Kc4 {[%clk 0:00:03.3]} 60... Bb2 {[%clk
0:00:09.4]} 61. Ne3 {[%clk 0:00:02.1]} 61... Kd6 {[%clk 0:00:07.3]} 62. Nd5
{[%clk 0:00:02.2]} 62... Ke6 {[%clk 0:00:07.7]} 63. Nc7+ {[%clk 0:00:01.8]}
63... Kf7 {[%clk 0:00:07.3]} 64. Nd5 {[%clk 0:00:01.8]} 64... Bc1 {[%clk
0:00:07.5]} 65. Kd3 {[%clk 0:00:02.3]} 65... Ba3 {[%clk 0:00:07]} 66. Ne3 {[%clk
0:00:01.7]} 66... Bc5 {[%clk 0:00:07.1]} 67. Nd1 {[%clk 0:00:02.1]} 67... Ke6
{[%clk 0:00:06.8]} 68. Kc4 {[%clk 0:00:01.8]} 68... Kd6 {[%clk 0:00:07.4]} 69.
Nc3 {[%clk 0:00:02.1]} 69... Bf2 {[%clk 0:00:07.4]} 70. Ne2 {[%clk 0:00:02.6]}
70... Kc6 {[%clk 0:00:07.9]} 71. Nd4+ {[%clk 0:00:02.4]} 71... Kd6 {[%clk
0:00:04.1]} 72. Ne2 {[%clk 0:00:02.1]} 72... Be1 {[%clk 0:00:04.4]} 73. Kd4
{[%clk 0:00:02.2]} 73... Kc6 {[%clk 0:00:04.2]} 74. Kc4 {[%clk 0:00:02.7]} 74...
Kb6 {[%clk 0:00:04.6]} 75. Kd4 {[%clk 0:00:02.2]} 75... Kb5 {[%clk 0:00:05]} 76.
Kd3 {[%clk 0:00:02.6]} 76... Kb4 {[%clk 0:00:05.2]} 77. Kc2 {[%clk 0:00:03.3]}
77... Bf2 {[%clk 0:00:05.6]} 78. Kb2 {[%clk 0:00:03.9]} 78... Be3 {[%clk
0:00:04.3]} 79. Kc2 {[%clk 0:00:04.4]} 79... Bf2 {[%clk 0:00:04.3]} 80. Kb2
{[%clk 0:00:04.9]} 80... Kc5 {[%clk 0:00:04.6]} 81. Kc3 {[%clk 0:00:05.2]} 81...
Kd5 {[%clk 0:00:05.1]} 82. Kd3 {[%clk 0:00:05.8]} 82... Be1 {[%clk 0:00:05.6]}
83. Ke3 {[%clk 0:00:06.1]} 83... Kc5 {[%clk 0:00:05.5]} 84. Kd3 {[%clk
0:00:06.8]} 84... Kb4 {[%clk 0:00:05.5]} 85. Kc2 {[%clk 0:00:07.4]} 85... Bf2
{[%clk 0:00:04.9]} 1/2-1/2

[Event "Late-Titled-Tuesday-Blitz-February-06-2024"]
[Site "Chess.com"]
[Date "2024.02.06"]
[Round "5"]
[White "Mackster23"]
[Black "DraningWaterHi"]
[Result "0-1"]
[WhiteElo "2743"]
[BlackElo "2224"]
[TimeControl "180+1"]
[EndTime "14:57:02 PST"]
[Termination "DraningWaterHi won by checkmate"]

1. e4 {[%clk 0:02:56.1]} 1... c5 {[%clk 0:02:59]} 2. Nf3 {[%clk 0:02:55.8]} 2...
d6 {[%clk 0:02:59]} 3. d4 {[%clk 0:02:55.9]} 3... cxd4 {[%clk 0:02:59.9]} 4.
Nxd4 {[%clk 0:02:55.7]} 4... Nf6 {[%clk 0:02:58.9]} 5. Nc3 {[%clk 0:02:56.3]}
5... e5 {[%clk 0:02:55.8]} 6. Bb5+ {[%clk 0:02:55.6]} 6... Nbd7 {[%clk
0:02:50.6]} 7. Nf5 {[%clk 0:02:55.2]} 7... a6 {[%clk 0:02:43.6]} 8. Bxd7+ {[%clk
0:02:30.9]} 8... Qxd7 {[%clk 0:02:44.5]} 9. Bg5 {[%clk 0:02:18.8]} 9... Nxe4
{[%clk 0:02:37.1]} 10. Nxg7+ {[%clk 0:02:18.5]} 10... Bxg7 {[%clk 0:02:37]} 11.
Nxe4 {[%clk 0:02:19.1]} 11... d5 {[%clk 0:02:34.2]} 12. Bf6 {[%clk 0:01:34.2]}
12... dxe4 {[%clk 0:02:27]} 13. Bxg7 {[%clk 0:01:31.4]} 13... Rg8 {[%clk
0:02:24.6]} 14. Bxe5 {[%clk 0:01:26]} 14... Qxd1+ {[%clk 0:02:21.1]} 15. Rxd1
{[%clk 0:01:25.4]} 15... Rxg2 {[%clk 0:02:19.7]} 16. Bg3 {[%clk 0:01:25.3]}
16... Bg4 {[%clk 0:02:17.4]} 17. Rd4 {[%clk 0:01:23.9]} 17... Bf3 {[%clk
0:02:17.4]} 18. Rf1 {[%clk 0:01:19.2]} 18... Rd8 {[%clk 0:02:15.9]} 19. Rxd8+
{[%clk 0:01:15.4]} 19... Kxd8 {[%clk 0:02:16.8]} 20. Kd2 {[%clk 0:01:15.1]}
20... h5 {[%clk 0:02:15.9]} 21. h4 {[%clk 0:01:13.1]} 21... Kd7 {[%clk
0:02:02.8]} 22. Ke3 {[%clk 0:01:11.9]} 22... Ke6 {[%clk 0:02:02.4]} 23. c4
{[%clk 0:01:10.8]} 23... f5 {[%clk 0:01:59.8]} 24. Rc1 {[%clk 0:01:07.9]} 24...
Kd7 {[%clk 0:01:52.1]} 25. b4 {[%clk 0:01:07.1]} 25... Kc6 {[%clk 0:01:51.3]}
26. a4 {[%clk 0:01:05.7]} 26... Bg4 {[%clk 0:01:43.7]} 27. c5 {[%clk 0:00:39.3]}
27... Bf3 {[%clk 0:01:29.2]} 28. Rb1 {[%clk 0:00:22.5]} 28... Bg4 {[%clk
0:01:23.8]} 29. Kf4 {[%clk 0:00:15.2]} 29... Bf3 {[%clk 0:00:46.8]} 30. Rc1
{[%clk 0:00:08.8]} 30... Bg4 {[%clk 0:00:45.5]} 31. Ke5 {[%clk 0:00:03.5]} 31...
e3 {[%clk 0:00:43.1]} 32. b5+ {[%clk 0:00:03.5]} 32... axb5 {[%clk 0:00:42.8]}
33. axb5+ {[%clk 0:00:04.4]} 33... Kxb5 {[%clk 0:00:42.9]} 34. Rc2 {[%clk
0:00:02.2]} 34... exf2 {[%clk 0:00:40.6]} 35. Bxf2 {[%clk 0:00:02.3]} 35... Kc6
{[%clk 0:00:36.7]} 36. Kd4 {[%clk 0:00:01.9]} 36... f4 {[%clk 0:00:36]} 37. Rd2
{[%clk 0:00:01.9]} 37... f3 {[%clk 0:00:36.1]} 38. Ke3 {[%clk 0:00:02.1]} 38...
Rh2 {[%clk 0:00:34.8]} 39. Rc2 {[%clk 0:00:01.9]} 39... Rh1 {[%clk 0:00:34.9]}
40. Kf4 {[%clk 0:00:01.4]} 40... Rf1 {[%clk 0:00:34.5]} 41. Kg3 {[%clk
0:00:01.9]} 41... Rd1 {[%clk 0:00:34.2]} 42. Rb2 {[%clk 0:00:02.2]} 42... Rd7
{[%clk 0:00:32.5]} 43. Rb6+ {[%clk 0:00:02.7]} 43... Kd5 {[%clk 0:00:32.6]} 44.
Rb4 {[%clk 0:00:02.6]} 44... Rc7 {[%clk 0:00:30.4]} 45. Rd4+ {[%clk 0:00:02.7]}
45... Ke6 {[%clk 0:00:28.4]} 46. Re4+ {[%clk 0:00:03.1]} 46... Kf5 {[%clk
0:00:28.2]} 47. Rd4 {[%clk 0:00:02.9]} 47... Ke5 {[%clk 0:00:24.3]} 48. Rd6
{[%clk 0:00:02.6]} 48... Rc6 {[%clk 0:00:21.5]} 49. Rd8 {[%clk 0:00:01.7]} 49...
Ke4 {[%clk 0:00:20.7]} 50. Re8+ {[%clk 0:00:01.8]} 50... Kd3 {[%clk 0:00:20.2]}
51. Re3+ {[%clk 0:00:02.4]} 51... Kd2 {[%clk 0:00:20.1]} 52. Re5 {[%clk
0:00:02.7]} 52... Kd3 {[%clk 0:00:20.3]} 53. Kf4 {[%clk 0:00:02.9]} 53... Rf6+
{[%clk 0:00:19.6]} 54. Kg5 {[%clk 0:00:02.7]} 54... Rc6 {[%clk 0:00:18.7]} 55.
Rd5+ {[%clk 0:00:03]} 55... Ke2 {[%clk 0:00:18.4]} 56. Bg3 {[%clk 0:00:02.5]}
56... f2 {[%clk 0:00:18.5]} 57. Re5+ {[%clk 0:00:03]} 57... Kf1 {[%clk
0:00:17.5]} 58. Rd5 {[%clk 0:00:02.7]} 58... Kg2 {[%clk 0:00:17.5]} 59. Bxf2
{[%clk 0:00:01.9]} 59... Kxf2 {[%clk 0:00:16.9]} 60. Kf4 {[%clk 0:00:02.4]}
60... Rf6+ {[%clk 0:00:16.1]} 61. Ke5 {[%clk 0:00:02.8]} 61... Rf5+ {[%clk
0:00:16.5]} 62. Kd6 {[%clk 0:00:03.4]} 62... Rxd5+ {[%clk 0:00:17.1]} 63. Kxd5
{[%clk 0:00:04.3]} 63... Bf3+ {[%clk 0:00:17.3]} 64. Ke5 {[%clk 0:00:04.2]}
64... Bc6 {[%clk 0:00:18.2]} 65. Kf4 {[%clk 0:00:04.6]} 65... Kg2 {[%clk
0:00:17.8]} 66. Kg5 {[%clk 0:00:04.9]} 66... Bf3 {[%clk 0:00:18.4]} 67. Kf4
{[%clk 0:00:05.3]} 67... Bc6 {[%clk 0:00:18]} 68. Kg5 {[%clk 0:00:05.8]} 68...
Bf3 {[%clk 0:00:17.9]} 69. Kf4 {[%clk 0:00:06.3]} 69... Kf2 {[%clk 0:00:18.5]}
70. Kf5 {[%clk 0:00:04.4]} 70... Kg3 {[%clk 0:00:18.6]} 71. Kg5 {[%clk
0:00:04.7]} 71... Kh3 {[%clk 0:00:18.6]} 72. Kf4 {[%clk 0:00:04.8]} 72... Bg4
{[%clk 0:00:17.9]} 73. Kg5 {[%clk 0:00:05]} 73... Kg3 {[%clk 0:00:17.9]} 74. Kf6
{[%clk 0:00:05.2]} 74... Kxh4 {[%clk 0:00:18.4]} 75. Ke5 {[%clk 0:00:05.9]}
75... Bf3 {[%clk 0:00:18.3]} 76. Kd6 {[%clk 0:00:06.8]} 76... Bc6 {[%clk
0:00:18.8]} 77. Kc7 {[%clk 0:00:07]} 77... Kg3 {[%clk 0:00:19.7]} 78. Kb6 {[%clk
0:00:07.3]} 78... h4 {[%clk 0:00:20.6]} 79. Ka5 {[%clk 0:00:06.7]} 79... h3
{[%clk 0:00:21.5]} 80. Kb4 {[%clk 0:00:07.1]} 80... h2 {[%clk 0:00:22.4]} 81.
Ka5 {[%clk 0:00:07.4]} 81... h1=Q {[%clk 0:00:23.3]} 82. Kb6 {[%clk 0:00:07.7]}
82... Qh7 {[%clk 0:00:23.3]} 83. Ka5 {[%clk 0:00:07]} 83... Qd7 {[%clk
0:00:23.3]} 84. Kb6 {[%clk 0:00:07.1]} 84... Qd5 {[%clk 0:00:23.5]} 85. Kc7
{[%clk 0:00:04.3]} 85... Qxc5 {[%clk 0:00:23.7]} 86. Kd8 {[%clk 0:00:04.8]}
86... Qd6+ {[%clk 0:00:23.5]} 87. Kc8 {[%clk 0:00:05.5]} 87... Qe6+ {[%clk
0:00:21.8]} 88. Kc7 {[%clk 0:00:05.7]} 88... b5 {[%clk 0:00:21.5]} 89. Kb6
{[%clk 0:00:05.8]} 89... b4 {[%clk 0:00:22]} 90. Kc5 {[%clk 0:00:06]} 90... b3
{[%clk 0:00:22.5]} 91. Kd4 {[%clk 0:00:06.6]} 91... b2 {[%clk 0:00:23]} 92. Kc5
{[%clk 0:00:07.2]} 92... b1=Q {[%clk 0:00:22.7]} 93. Kd4 {[%clk 0:00:08.1]}
93... Qbe4+ {[%clk 0:00:22.6]} 94. Kc3 {[%clk 0:00:08.2]} 94... Q6c4+ {[%clk
0:00:22.7]} 95. Kb2 {[%clk 0:00:08.9]} 95... Qec2+ {[%clk 0:00:22.9]} 96. Ka3
{[%clk 0:00:09.7]} 96... Q4a4# {[%clk 0:00:22.6]} 0-1

[Event "Late-Titled-Tuesday-Blitz-February-06-2024"]
[Site "Chess.com"]
[Date "2024.02.06"]
[Round "5"]
[White "rasmussvane"]
[Black "Karttunen"]
[Result "1/2-1/2"]
[WhiteElo "2951"]
[BlackElo "2649"]
[TimeControl "180+1"]
[EndTime "14:57:15 PST"]
[Termination "Game drawn by repetition"]

1. Nf3 {[%clk 0:02:53.5]} 1... Nf6 {[%clk 0:02:59.7]} 2. g3 {[%clk 0:02:53.6]}
2... d5 {[%clk 0:02:59.7]} 3. Bg2 {[%clk 0:02:54]} 3... e6 {[%clk 0:02:59.6]} 4.
O-O {[%clk 0:02:53.7]} 4... Be7 {[%clk 0:02:57.8]} 5. c4 {[%clk 0:02:51.6]} 5...
d4 {[%clk 0:02:57.2]} 6. e3 {[%clk 0:02:48.6]} 6... c5 {[%clk 0:02:57.2]} 7.
exd4 {[%clk 0:02:48.6]} 7... cxd4 {[%clk 0:02:57.5]} 8. d3 {[%clk 0:02:49]} 8...
h6 {[%clk 0:02:55.6]} 9. Re1 {[%clk 0:02:47.2]} 9... Nc6 {[%clk 0:02:55.5]} 10.
a3 {[%clk 0:02:45.6]} 10... a5 {[%clk 0:02:55.2]} 11. Bf4 {[%clk 0:02:44.4]}
11... O-O {[%clk 0:02:47.3]} 12. Ne5 {[%clk 0:02:23.2]} 12... Nxe5 {[%clk
0:02:07.6]} 13. Bxe5 {[%clk 0:02:22.8]} 13... Bc5 {[%clk 0:02:06.7]} 14. Bxf6
{[%clk 0:02:18]} 14... Qxf6 {[%clk 0:02:06.1]} 15. Nd2 {[%clk 0:02:18.5]} 15...
Qd8 {[%clk 0:02:02.4]} 16. Rc1 {[%clk 0:02:00.3]} 16... a4 {[%clk 0:01:57.5]}
17. Qc2 {[%clk 0:01:48.6]} 17... Ra5 {[%clk 0:01:43.7]} 18. b4 {[%clk
0:01:39.2]} 18... axb3 {[%clk 0:01:43]} 19. Nxb3 {[%clk 0:01:39.2]} 19... Bxa3
{[%clk 0:01:42.7]} 20. Nxa5 {[%clk 0:01:35.1]} 20... Bxc1 {[%clk 0:01:42.8]} 21.
Nxb7 {[%clk 0:01:31.8]} 21... Bxb7 {[%clk 0:01:37.9]} 22. Bxb7 {[%clk
0:01:32.7]} 22... Ba3 {[%clk 0:01:28]} 23. c5 {[%clk 0:01:15.8]} 23... Qa5
{[%clk 0:01:27.6]} 24. Rd1 {[%clk 0:00:24.6]} 24... Qxc5 {[%clk 0:01:09.8]} 25.
Qe2 {[%clk 0:00:23.4]} 25... Bb4 {[%clk 0:01:06.7]} 26. Be4 {[%clk 0:00:22.7]}
26... Rc8 {[%clk 0:00:57.1]} 27. Rb1 {[%clk 0:00:22.1]} 27... Qe7 {[%clk
0:00:47.2]} 28. Kg2 {[%clk 0:00:21.2]} 28... Bd6 {[%clk 0:00:39.4]} 29. h4
{[%clk 0:00:21.3]} 29... Qf6 {[%clk 0:00:36.9]} 30. Rb6 {[%clk 0:00:20.2]} 30...
Be5 {[%clk 0:00:35.2]} 31. Rb5 {[%clk 0:00:19.7]} 31... Bd6 {[%clk 0:00:34.3]}
32. Ra5 {[%clk 0:00:19.7]} 32... Rb8 {[%clk 0:00:29.1]} 33. Ra6 {[%clk
0:00:19.4]} 33... Bc7 {[%clk 0:00:28.5]} 34. Rc6 {[%clk 0:00:19.5]} 34... Qd8
{[%clk 0:00:27.4]} 35. Qc2 {[%clk 0:00:18.9]} 35... Bd6 {[%clk 0:00:27.5]} 36.
Qe2 {[%clk 0:00:18.9]} 36... Be7 {[%clk 0:00:27.4]} 37. h5 {[%clk 0:00:18.9]}
37... Bf6 {[%clk 0:00:27.7]} 38. Rc2 {[%clk 0:00:18.2]} 38... Qd6 {[%clk
0:00:27.5]} 39. Rc6 {[%clk 0:00:17.6]} 39... Qd8 {[%clk 0:00:27.6]} 40. Qc2
{[%clk 0:00:17.9]} 40... Qa5 {[%clk 0:00:25.4]} 41. Rc5 {[%clk 0:00:15.6]} 41...
Qd8 {[%clk 0:00:25.1]} 42. Qc1 {[%clk 0:00:14.4]} 42... Qd6 {[%clk 0:00:24.1]}
43. Rc6 {[%clk 0:00:14]} 43... Qd8 {[%clk 0:00:24.2]} 44. Rc4 {[%clk 0:00:14.1]}
44... Qd6 {[%clk 0:00:23]} 45. Qd1 {[%clk 0:00:14.1]} 45... Qd8 {[%clk
0:00:22.6]} 46. Qf3 {[%clk 0:00:14.5]} 46... Rc8 {[%clk 0:00:22.8]} 47. Ra4
{[%clk 0:00:14.3]} 47... Qd6 {[%clk 0:00:21.9]} 48. Ra7 {[%clk 0:00:14.2]} 48...
Rf8 {[%clk 0:00:17]} 49. Qd1 {[%clk 0:00:14]} 49... Qe5 {[%clk 0:00:17.3]} 50.
Rb7 {[%clk 0:00:13]} 50... Qd6 {[%clk 0:00:17.5]} 51. Qf3 {[%clk 0:00:13.1]}
51... Qe5 {[%clk 0:00:17.6]} 52. Ra7 {[%clk 0:00:12.8]} 52... Qd6 {[%clk
0:00:17.9]} 53. Ra5 {[%clk 0:00:13.3]} 53... Qc7 {[%clk 0:00:17.4]} 54. Rb5
{[%clk 0:00:13.6]} 54... Qd7 {[%clk 0:00:17.5]} 55. Bc6 {[%clk 0:00:13.1]} 55...
Qd6 {[%clk 0:00:17.5]} 56. Rb7 {[%clk 0:00:13.7]} 56... Qc5 {[%clk 0:00:17.1]}
57. Be4 {[%clk 0:00:14.1]} 57... Qd6 {[%clk 0:00:17.1]} 58. Qg4 {[%clk
0:00:14.4]} 58... Qe5 {[%clk 0:00:17.1]} 59. Bf3 {[%clk 0:00:14.9]} 59... Qf5
{[%clk 0:00:16.4]} 60. Qxf5 {[%clk 0:00:13.7]} 60... exf5 {[%clk 0:00:16.9]} 61.
Rb5 {[%clk 0:00:14.4]} 61... g6 {[%clk 0:00:17.3]} 62. hxg6 {[%clk 0:00:13]}
62... fxg6 {[%clk 0:00:18.2]} 63. Rb7 {[%clk 0:00:13.3]} 63... Kh8 {[%clk
0:00:17.6]} 64. Bd5 {[%clk 0:00:13.3]} 64... Bg7 {[%clk 0:00:17.8]} 65. Kf3
{[%clk 0:00:13.3]} 65... g5 {[%clk 0:00:18]} 66. Be6 {[%clk 0:00:12.3]} 66... f4
{[%clk 0:00:17.9]} 67. g4 {[%clk 0:00:11.5]} 67... Re8 {[%clk 0:00:17.5]} 68.
Bf5 {[%clk 0:00:11.6]} 68... Kg8 {[%clk 0:00:16.3]} 69. Rd7 {[%clk 0:00:10.7]}
69... Re1 {[%clk 0:00:15.3]} 70. Be4 {[%clk 0:00:10.2]} 70... Bf8 {[%clk
0:00:14.8]} 71. Bd5+ {[%clk 0:00:09.9]} 71... Kh8 {[%clk 0:00:14.9]} 72. Bc4
{[%clk 0:00:09.6]} 72... Re7 {[%clk 0:00:13.8]} 73. Rxd4 {[%clk 0:00:09.5]}
73... Kg7 {[%clk 0:00:13.7]} 74. Rd5 {[%clk 0:00:09.3]} 74... Re1 {[%clk
0:00:12.8]} 75. Rd7+ {[%clk 0:00:09.4]} 75... Re7 {[%clk 0:00:11.3]} 76. Rd8
{[%clk 0:00:09.8]} 76... Rc7 {[%clk 0:00:10.2]} 77. Bd5 {[%clk 0:00:09.9]} 77...
Be7 {[%clk 0:00:09.2]} 78. Re8 {[%clk 0:00:09.3]} 78... Bf8 {[%clk 0:00:08.8]}
79. Be4 {[%clk 0:00:09.4]} 79... Re7 {[%clk 0:00:09]} 80. Rc8 {[%clk 0:00:09.3]}
80... Rd7 {[%clk 0:00:09.5]} 81. Rc6 {[%clk 0:00:09.6]} 81... Rd6 {[%clk
0:00:09.3]} 82. Rc7+ {[%clk 0:00:09.9]} 82... Kf6 {[%clk 0:00:09.7]} 83. Rh7
{[%clk 0:00:10.1]} 83... Bg7 {[%clk 0:00:10]} 84. Ke2 {[%clk 0:00:08.4]} 84...
Rd8 {[%clk 0:00:10.3]} 85. Kf3 {[%clk 0:00:07.3]} 85... Rh8 {[%clk 0:00:10.5]}
86. Rxh8 {[%clk 0:00:07.3]} 86... Bxh8 {[%clk 0:00:11.4]} 87. d4 {[%clk
0:00:07.6]} 87... Ke6 {[%clk 0:00:11.6]} 88. d5+ {[%clk 0:00:05.4]} 88... Ke5
{[%clk 0:00:11.8]} 89. d6 {[%clk 0:00:04.8]} 89... Kxd6 {[%clk 0:00:12]} 90. Bg6
{[%clk 0:00:05.2]} 90... Ke5 {[%clk 0:00:12.5]} 91. Kg2 {[%clk 0:00:05.7]} 91...
Kd4 {[%clk 0:00:13.1]} 92. f3 {[%clk 0:00:05.8]} 92... Be5 {[%clk 0:00:13.8]}
93. Bh5 {[%clk 0:00:06.4]} 93... Ke3 {[%clk 0:00:14.3]} 94. Bg6 {[%clk
0:00:06.9]} 94... Bd4 {[%clk 0:00:14.9]} 95. Bh5 {[%clk 0:00:07.8]} 95... Bc3
{[%clk 0:00:15.3]} 96. Bg6 {[%clk 0:00:08.5]} 96... Bd2 {[%clk 0:00:15.2]} 97.
Bh5 {[%clk 0:00:09.4]} 97... Bc3 {[%clk 0:00:15.9]} 98. Bg6 {[%clk 0:00:10.2]}
98... Bd2 {[%clk 0:00:16.8]} 99. Bh5 {[%clk 0:00:11.1]} 99... Bc3 {[%clk
0:00:17.7]} 1/2-1/2